bitfinex/quotes_BTCUSD_20241002
["timestamp","ask_amount","ask_price","bid_price","bid_amount"]
[1727894815993,0.45150515,61234.0,61233.0,0.002634]
[1727894816511,0.45750515,61234.0,61233.0,0.002634]
[1727894816775,0.46550515,61234.0,61233.0,0.002634]
[1727894817011,0.46750515,61234.0,61233.0,0.002634]
[1727894817226,0.56750515,61234.0,61233.0,0.002634]
[1727894817667,0.56550515,61234.0,61233.0,0.002634]
[1727894818137,0.46550515,61234.0,61233.0,0.002634]
[1727894820436,0.46550515,61234.0,61229.0,0.000819]
[1727894820437,0.163318,61230.0,61229.0,0.000819]
[1727894820667,0.443218,61230.0,61229.0,0.000819]
[1727894820929,0.163353,61217.0,61213.0,0.001634]
[1727894821158,0.54955115,61217.0,61213.0,0.001634]
[1727894821611,0.163361,61214.0,61213.0,0.001634]
[1727894823446,0.164361,61214.0,61213.0,0.001634]
[1727894824154,0.170361,61214.0,61213.0,0.001634]
[1727894824629,0.169361,61214.0,61213.0,0.001634]
[1727894824864,0.176361,61214.0,61213.0,0.001634]
[1727894825306,0.163361,61214.0,61213.0,0.001634]
[1727894825529,0.165361,61214.0,61213.0,0.001634]
[1727894825756,0.172361,61214.0,61213.0,0.001634]
[1727894826231,0.178361,61214.0,61213.0,0.001634]
[1727894830619,0.20597134,61214.0,61213.0,0.001634]
[1727894830866,0.163385,61205.0,61204.0,0.24451671]
[1727894831206,0.26339,61203.0,61202.0,0.000818]
[1727894831735,0.55159615,61200.0,61199.0,0.000819]
[1727894832229,0.263406,61197.0,61196.0,0.000819]
[1727894832914,0.54960415,61197.0,61196.0,0.000819]
[1727894833166,0.55160415,61197.0,61196.0,0.000819]
[1727894833430,0.1,61192.0,61185.0,0.24451671]
[1727894833676,0.54962815,61188.0,61185.0,0.24451671]
[1727894834383,0.54962815,61188.0,61186.0,0.24451671]
[1727894834609,0.54962815,61188.0,61177.0,0.24451671]
[1727894835326,0.56162815,61188.0,61177.0,0.24451671]
[1727894835788,0.17543,61188.0,61177.0,0.24451671]
[1727894836069,0.47362815,61188.0,61177.0,0.24451671]
[1727894836485,0.48362815,61188.0,61177.0,0.24451671]
[1727894836716,0.47162815,61188.0,61177.0,0.24451671]
[1727894836959,0.55962815,61188.0,61177.0,0.24451671]
[1727894837183,0.56562815,61188.0,61177.0,0.24451671]
[1727894837419,0.55562815,61188.0,61177.0,0.24451671]
[1727894837657,0.55862815,61188.0,61177.0,0.24451671]
[1727894838106,0.45862815,61188.0,61177.0,0.24451671]
[1727894838338,0.45562815,61188.0,61177.0,0.24451671]
[1727894838577,0.46562815,61188.0,61177.0,0.24451671]
[1727894838811,0.47162815,61188.0,61177.0,0.24451671]
[1727894839044,0.47162815,61188.0,61177.0,0.40797571]
[1727894839045,0.45962815,61188.0,61177.0,0.40797571]
[1727894839298,0.46762815,61188.0,61177.0,0.24451671]
[1727894839767,0.47162815,61188.0,61177.0,0.24451671]
[1727894839993,0.46162815,61188.0,61177.0,0.40797371]
[1727894840228,0.45362815,61188.0,61177.0,0.24451671]
[1727894840463,0.45362815,61188.0,61187.0,0.00076853]
[1727894840464,0.49424961,61188.0,61187.0,0.00076853]
[1727894840911,0.48524961,61188.0,61187.0,0.00076853]
[1727894841148,0.48924961,61188.0,61187.0,0.00076853]
[1727894841593,0.47524961,61188.0,61187.0,0.00076853]
[1727894841825,0.48224961,61188.0,61187.0,0.00076853]
[1727894842038,0.48524961,61188.0,61187.0,0.00076853]
[1727894842488,0.48624961,61188.0,61187.0,0.00076853]
[1727894843164,0.47924961,61188.0,61187.0,0.00076853]
[1727894843386,0.62992807,61188.0,61187.0,0.00076853]
[1727894843615,0.48324961,61188.0,61187.0,0.00076853]
[1727894844058,0.48324961,61188.0,61179.0,0.24451671]
[1727894844059,0.265441,61184.0,61179.0,0.24451671]
[1727894844295,0.265441,61184.0,61164.0,0.0765]
[1727894845451,0.965441,61184.0,61164.0,0.0765]
[1727894845667,0.55164415,61182.0,61164.0,0.0765]
[1727894846532,0.54964415,61182.0,61164.0,0.0765]
[1727894846748,0.57727168,61182.0,61164.0,0.0765]
[1727894847218,0.56464415,61182.0,61164.0,0.0765]
[1727894847439,0.56264415,61182.0,61164.0,0.0765]
[1727894847900,0.57564415,61182.0,61164.0,0.0765]
[1727894848122,0.57764415,61182.0,61164.0,0.0765]
[1727894848367,0.57564415,61182.0,61164.0,0.0765]
[1727894848604,0.57564415,61182.0,61165.0,0.326984]
[1727894848888,0.47564415,61182.0,61169.0,0.16348]
[1727894849338,0.47564415,61182.0,61181.0,0.00102]
[1727894849574,0.46264415,61182.0,61181.0,0.00102]
[1727894850018,0.4882691,61182.0,61181.0,0.00102]
[1727894850269,0.4752691,61182.0,61181.0,0.00102]
[1727894850500,0.4792691,61182.0,61181.0,0.00102]
[1727894850742,0.96997702,61182.0,61181.0,0.00102]
[1727894850966,0.72146031,61182.0,61181.0,0.00102]
[1727894851189,0.44968415,61167.0,61166.0,0.24615271]
[1727894851672,0.44968415,61167.0,61166.0,0.001636]
[1727894851889,0.47531312,61167.0,61166.0,0.001636]
[1727894852785,0.47631312,61167.0,61166.0,0.002636]
[1727894853927,0.164486,61167.0,61166.0,0.002636]
[1727894854153,0.163486,61167.0,61166.0,0.001636]
[1727894854368,0.44968415,61167.0,61166.0,0.001636]
[1727894855091,0.69420086,61167.0,61166.0,0.001636]
[1727894855313,0.44968415,61167.0,61166.0,0.001636]
[1727894856729,0.54968415,61167.0,61166.0,0.001636]
[1727894856979,0.71857339,61167.0,61166.0,0.001636]
[1727894857203,0.57531658,61167.0,61166.0,0.001636]
[1727894857436,0.57831658,61167.0,61166.0,0.001636]
[1727894857889,0.58031658,61167.0,61166.0,0.001636]
[1727894858109,0.55968415,61167.0,61166.0,0.001636]
[1727894858328,0.56968415,61167.0,61166.0,0.001636]
[1727894858573,0.73287086,61167.0,61166.0,0.001636]
[1727894858817,0.163526,61152.0,61151.0,0.001636]
[1727894859047,0.102,61148.0,61147.0,0.24451671]
[1727894859312,0.163551,61143.0,61141.0,0.0002]
[1727894859546,0.44974915,61143.0,61141.0,0.0002]
[1727894860289,0.47539062,61143.0,61141.0,0.0002]
[1727894860527,0.57539062,61143.0,61141.0,0.0002]
[1727894861203,0.59239062,61143.0,61141.0,0.0002]
[1727894861661,0.60039062,61143.0,61141.0,0.0002]
[1727894861906,0.59439062,61143.0,61141.0,0.0002]
[1727894862127,0.59439062,61143.0,61142.0,0.0172181]
[1727894862368,0.60039062,61143.0,61142.0,0.0172181]
[1727894862586,0.59139062,61143.0,61142.0,0.0172181]
[1727894863032,0.59639062,61143.0,61142.0,0.0172181]
[1727894863489,0.56374915,61143.0,61142.0,0.0172181]
[1727894863715,0.57274915,61143.0,61142.0,0.0172181]
[1727894863940,0.55874915,61143.0,61142.0,0.0172181]
[1727894864175,0.56674915,61143.0,61142.0,0.0172181]
[1727894864408,0.54974915,61143.0,61142.0,0.0172181]
[1727894864833,0.55474915,61143.0,61142.0,0.0172181]
[1727894865275,0.54974915,61143.0,61142.0,0.0172181]
[1727894865761,0.55774915,61143.0,61142.0,0.0172181]
[1727894865998,0.55574915,61143.0,61142.0,0.0172181]
[1727894866466,0.55174915,61143.0,61142.0,0.0172181]
[1727894866691,0.5753908,61143.0,61142.0,0.0172181]
[1727894866915,0.57955585,61143.0,61142.0,0.0172181]
[1727894867142,0.61819902,61143.0,61142.0,0.0172181]
[1727894867376,0.263561,61139.0,61138.0,0.0001]
[1727894868525,0.163561,61139.0,61138.0,0.0001]
[1727894868974,0.171561,61139.0,61138.0,0.0001]
[1727894869211,0.163561,61139.0,61138.0,0.0001]
[1727894869938,0.18920322,61139.0,61138.0,0.0001]
[1727894870398,0.29920322,61139.0,61138.0,0.0001]
[1727894870844,0.29420322,61139.0,61138.0,0.0001]
[1727894871290,0.29220322,61139.0,61138.0,0.0001]
[1727894871504,0.30120322,61139.0,61138.0,0.0001]
[1727894871715,0.29920322,61139.0,61138.0,0.0001]
[1727894872400,0.29220322,61139.0,61138.0,0.0001]
[1727894872634,0.28920322,61139.0,61138.0,0.0001]
[1727894873564,0.29720322,61139.0,61138.0,0.0001]
[1727894873788,0.30720322,61139.0,61138.0,0.0001]
[1727894874040,0.29720322,61139.0,61138.0,0.00092]
[1727894874268,0.30420322,61139.0,61138.0,0.00092]
[1727894876357,0.20420322,61139.0,61138.0,0.00092]
[1727894879084,0.178561,61139.0,61138.0,0.00092]
[1727894879315,0.42307771,61139.0,61138.0,0.00092]
[1727894879533,0.278561,61139.0,61138.0,0.00092]
[1727894879983,0.30420669,61139.0,61138.0,0.00092]
[1727894880912,0.20420669,61139.0,61138.0,0.00092]
[1727894882038,0.20420669,61139.0,61138.0,0.07852]
[1727894882274,0.4487234,61139.0,61138.0,0.00092]
[1727894882551,0.20420669,61139.0,61138.0,0.00092]
[1727894883032,0.44338067,61139.0,61138.0,0.00092]
[1727894883270,0.45138067,61139.0,61138.0,0.00092]
[1727894883516,0.44638067,61139.0,61138.0,0.00092]
[1727894883749,0.44638067,61139.0,61125.0,0.000818]
[1727894883750,0.55179415,61126.0,61125.0,0.000818]
[1727894883981,0.56730825,61126.0,61125.0,0.000818]
[1727894884253,0.263607,61122.0,61119.0,0.000819]
[1727894884487,0.27965642,61122.0,61119.0,0.000819]
[1727894885404,0.17965642,61122.0,61119.0,0.000819]
[1727894885635,0.163607,61122.0,61119.0,0.000819]
[1727894886115,0.005,61126.0,61119.0,0.000819]
[1727894886377,0.005,61126.0,61123.0,0.023]
[1727894886643,0.163594,61127.0,61123.0,0.163603]
[1727894886879,0.24451671,61129.0,61122.0,0.079]
[1727894886880,0.24451671,61129.0,61124.0,0.1636]
[1727894887117,0.02564464,61126.0,61123.0,0.327208]
[1727894887353,0.02564464,61126.0,61125.0,0.163599]
[1727894887577,0.24451671,61138.0,61124.0,0.16318671]
[1727894887801,0.24451671,61131.0,61124.0,0.16318671]
[1727894888018,0.02564254,61134.0,61133.0,0.163577]
[1727894888492,0.40807571,61140.0,61132.0,0.327159]
[1727894888717,0.24451671,61140.0,61136.0,0.163569]
[1727894888999,0.328743,61143.0,61135.0,0.079]
[1727894889000,0.163557,61141.0,61135.0,0.079]
[1727894889216,0.163557,61141.0,61137.0,0.163566]
[1727894889441,0.163562,61139.0,61135.0,0.242571]
[1727894889663,0.18919387,61142.0,61138.0,0.163563]
[1727894889881,0.18919487,61142.0,61135.0,0.079]
[1727894890110,0.163557,61141.0,61136.0,0.327137]
[1727894890345,0.001,61141.0,61140.0,0.163557]
[1727894890578,0.001,61141.0,61137.0,0.005]
[1727894890579,0.002,61141.0,61137.0,0.012]
[1727894890805,0.002,61141.0,61138.0,0.163564]
[1727894891252,0.002,61141.0,61137.0,0.005]
[1727894891483,0.163563,61139.0,61137.0,0.005]
[1727894891708,0.163565,61138.0,61135.0,0.083]
[1727894892383,0.327117,61141.0,61135.0,0.085]
[1727894892605,0.163562,61139.0,61135.0,0.085]
[1727894892846,0.163565,61138.0,61135.0,0.085]
[1727894893055,0.163565,61138.0,61137.0,0.005]
[1727894893277,0.164565,61138.0,61137.0,0.005]
[1727894893498,0.164565,61138.0,61135.0,0.084]
[1727894894150,0.001,61138.0,61135.0,0.251571]
[1727894894368,0.164565,61138.0,61135.0,0.088]
[1727894894587,0.163565,61138.0,61135.0,0.079]
[1727894895033,0.164565,61138.0,61137.0,0.005]
[1727894895537,0.327118,61140.0,61135.0,0.242572]
[1727894895771,0.001636,61143.0,61142.0,0.163553]
[1727894895994,0.001636,61143.0,61142.0,0.186553]
[1727894897358,0.002636,61143.0,61142.0,0.005]
[1727894898040,0.003636,61143.0,61142.0,0.012]
[1727894898268,0.003636,61143.0,61142.0,0.198553]
[1727894898493,0.003636,61143.0,61142.0,0.36173971]
[1727894900086,0.003636,61143.0,61142.0,0.44443971]
[1727894902655,0.002636,61143.0,61142.0,0.43743971]
[1727894903377,0.001636,61143.0,61142.0,0.43243971]
[1727894903608,0.002636,61143.0,61142.0,0.44643971]
[1727894904108,0.004636,61143.0,61142.0,0.47243971]
[1727894904329,0.002636,61143.0,61142.0,0.73263786]
[1727894904565,0.002636,61143.0,61142.0,0.71863786]
[1727894904566,0.001636,61143.0,61142.0,0.71863786]
[1727894904830,0.001636,61143.0,61142.0,0.80953786]
[1727894905268,0.002636,61143.0,61142.0,0.82253786]
[1727894905699,0.002636,61143.0,61142.0,0.81753786]
[1727894905912,0.002636,61143.0,61142.0,0.53133971]
[1727894906539,0.001636,61143.0,61142.0,0.52333971]
[1727894906771,0.002636,61143.0,61142.0,0.42343971]
[1727894907301,0.003636,61143.0,61142.0,0.43743971]
[1727894908329,0.003636,61143.0,61142.0,0.46043971]
[1727894909173,0.003636,61143.0,61142.0,0.297253]
[1727894909395,0.167187,61143.0,61142.0,0.028]
[1727894909842,0.19282602,61143.0,61142.0,0.028]
[1727894910286,0.19282602,61143.0,61142.0,0.014]
[1727894910287,0.19182602,61143.0,61142.0,0.014]
[1727894910509,0.163561,61139.0,61138.0,0.000818]
[1727894912102,0.163561,61139.0,61138.0,0.002818]
[1727894912757,0.327119,61140.0,61138.0,0.006818]
[1727894912758,0.163559,61140.0,61138.0,0.006818]
[1727894912983,0.02727502,61143.0,61138.0,0.006818]
[1727894913211,0.163554,61142.0,61138.0,0.17038]
[1727894913461,0.001636,61143.0,61141.0,0.163555]
[1727894913689,0.163554,61142.0,61139.0,0.16356]
[1727894913917,0.001636,61143.0,61140.0,0.350116]
[1727894914148,0.001636,61143.0,61142.0,0.186553]
[1727894914863,0.003636,61143.0,61142.0,0.023]
[1727894915078,0.003636,61143.0,61142.0,0.34973971]
[1727894915303,0.001636,61143.0,61142.0,0.34973971]
[1727894916007,0.002636,61143.0,61142.0,0.18618671]
[1727894916230,0.002636,61143.0,61142.0,0.34973971]
[1727894916446,0.003636,61143.0,61142.0,0.35973971]
[1727894916597,0.005636,61143.0,61142.0,0.35973971]
[1727894917355,0.003636,61143.0,61142.0,0.35973971]
[1727894917580,0.004636,61143.0,61142.0,0.36773971]
[1727894917801,0.004636,61143.0,61142.0,0.018]
[1727894918026,0.004636,61143.0,61142.0,0.181553]
[1727894918254,0.004636,61143.0,61142.0,0.34473971]
[1727894919213,0.004636,61143.0,61142.0,0.36773971]
[1727894921870,0.004636,61143.0,61142.0,0.63953971]
[1727894922304,0.004636,61143.0,61142.0,0.62953971]
[1727894922305,0.002636,61143.0,61142.0,0.62953971]
[1727894922732,0.001636,61143.0,61142.0,0.63974235]
[1727894923163,0.001636,61143.0,61142.0,0.64674235]
[1727894923378,0.001636,61143.0,61142.0,0.66074235]
[1727894923586,0.001636,61143.0,61142.0,0.65374235]
[1727894923805,0.001636,61143.0,61142.0,0.66774235]
[1727894924460,0.001636,61143.0,61142.0,0.66974235]
[1727894924680,0.001636,61143.0,61142.0,0.66774235]
[1727894924898,0.001636,61143.0,61142.0,0.66974235]
[1727894925808,0.001636,61143.0,61142.0,0.67474235]
[1727894926946,0.001636,61143.0,61142.0,0.67274235]
[1727894927456,0.001636,61143.0,61142.0,0.67474235]
[1727894927714,0.24451671,61166.0,61154.0,0.242821]
[1727894927934,0.24451671,61166.0,61154.0,0.42900771]
[1727894928377,0.24451671,61166.0,61154.0,0.26548671]
[1727894928612,0.24451671,61166.0,61165.0,0.186492]
[1727894928829,0.24451671,61166.0,61165.0,0.34967871]
[1727894929045,0.40798771,61173.0,61169.0,0.163479]
[1727894929271,0.163486,61167.0,61166.0,0.023]
[1727894929539,0.163497,61164.0,61160.0,0.163504]
[1727894929762,0.28619815,61170.0,61158.0,0.023]
[1727894929976,0.326991,61164.0,61161.0,0.023]
[1727894930197,0.32698,61166.0,61160.0,0.023]
[1727894930418,0.163497,61163.0,61160.0,0.186504]
[1727894930638,0.163501,61162.0,61160.0,0.023]
[1727894930852,0.163502,61161.0,61160.0,0.026]
[1727894931074,0.1635,61162.0,61160.0,0.026]
[1727894931512,0.02563077,61164.0,61160.0,0.026]
[1727894931723,0.02563077,61164.0,61161.0,0.163502]
[1727894931961,0.18912677,61164.0,61162.0,0.023]
[1727894932184,0.02563077,61164.0,61161.0,0.023]
[1727894932401,0.490493,61163.0,61160.0,0.026]
[1727894932617,0.163502,61161.0,61160.0,0.033]
[1727894932836,0.326995,61163.0,61160.0,0.023]
[1727894933027,0.163517,61156.0,61152.0,0.023]
[1727894933251,0.163512,61158.0,61155.0,0.186518]
[1727894933462,0.163509,61159.0,61155.0,0.186518]
[1727894933758,0.163509,61159.0,61155.0,0.023]
[1727894933965,0.163514,61157.0,61154.0,0.186521]
[1727894934173,0.163514,61157.0,61154.0,0.34970771]
[1727894934385,0.163511,61158.0,61155.0,0.163518]
[1727894934608,0.163511,61158.0,61156.0,0.023]
[1727894935198,0.163513,61158.0,61155.0,0.023]
[1727894935401,0.163508,61159.0,61157.0,0.023]
[1727894936561,0.163505,61160.0,61157.0,0.186513]
[1727894936980,0.163505,61160.0,61157.0,0.196513]
[1727894937198,0.02563187,61161.0,61157.0,0.033]
[1727894937411,0.44970815,61158.0,61157.0,0.01]
[1727894937629,0.35497862,61158.0,61157.0,0.01]
[1727894938069,0.35497862,61158.0,61157.0,0.006]
[1727894938493,0.35497862,61158.0,61157.0,0.003]
[1727894938709,0.35497862,61158.0,61157.0,0.008]
[1727894938922,0.55254308,61158.0,61157.0,0.005]
[1727894939163,0.52917862,61158.0,61157.0,0.005]
[1727894939587,0.46145746,61158.0,61142.0,0.000818]
[1727894939807,0.163551,61143.0,61142.0,0.000818]
[1727894940243,0.327092,61145.0,61142.0,0.000818]
[1727894940472,0.327096,61144.0,61142.0,0.000818]
[1727894940679,0.163551,61143.0,61142.0,0.000818]
[1727894941535,0.163551,61143.0,61142.0,0.001818]
[1727894941987,0.18919045,61143.0,61142.0,0.000818]
[1727894942418,0.02563945,61143.0,61142.0,0.000818]
[1727894942636,0.02563945,61143.0,61142.0,0.001818]
[1727894943080,0.02563945,61143.0,61142.0,0.188371]
[1727894943303,0.327027,61157.0,61148.0,0.327074]
[1727894943523,0.001636,61162.0,61152.0,0.023]
[1727894943758,0.001636,61162.0,61156.0,0.023]
[1727894943995,0.163503,61161.0,61154.0,0.023]
[1727894944233,0.001636,61162.0,61158.0,0.023]
[1727894944234,0.163508,61159.0,61158.0,0.023]
[1727894944450,0.163511,61158.0,61155.0,0.023]
[1727894944683,0.163511,61158.0,61149.0,0.0952]
[1727894944684,0.001636,61162.0,61149.0,0.023]
[1727894944896,0.327055,61152.0,61143.0,0.023]
[1727894945130,0.28725746,61155.0,61143.0,0.023]
[1727894945131,0.163548,61144.0,61143.0,0.023]
[1727894945358,0.163551,61143.0,61142.0,0.006818]
[1727894945806,0.163551,61143.0,61142.0,0.000818]
[1727894946039,0.165187,61143.0,61142.0,0.000818]
[1727894946793,0.165187,61143.0,61142.0,0.001818]
[1727894947010,0.40970371,61143.0,61142.0,0.001818]
[1727894947232,0.165187,61143.0,61142.0,0.001818]
[1727894948394,0.168187,61143.0,61142.0,0.001818]
[1727894948619,0.168187,61143.0,61142.0,0.000818]
[1727894949037,0.165187,61143.0,61142.0,0.000818]
[1727894949337,0.170187,61143.0,61142.0,0.000818]
[1727894949765,0.165187,61143.0,61142.0,0.000818]
[1727894949977,0.68893991,61143.0,61142.0,0.000818]
[1727894950196,0.5464232,61143.0,61142.0,0.000818]
[1727894950420,0.265561,61139.0,61137.0,0.01022]
[1727894950639,0.163596,61126.0,61123.0,0.24451671]
[1727894950860,0.56636756,61126.0,61123.0,0.24451671]
[1727894951085,0.59401603,61126.0,61121.0,0.001019]
[1727894951307,0.59201603,61126.0,61121.0,0.001019]
[1727894951941,0.60301603,61126.0,61125.0,0.001818]
[1727894952173,0.58750193,61126.0,61125.0,0.001818]
[1727894952401,0.18924447,61126.0,61125.0,0.000818]
[1727894952609,0.19924447,61126.0,61125.0,0.001818]
[1727894952837,0.20524447,61126.0,61125.0,0.002818]
[1727894953057,0.20524447,61126.0,61125.0,0.001818]
[1727894953058,0.19924447,61126.0,61125.0,0.001818]
[1727894953350,0.20524447,61126.0,61125.0,0.002818]
[1727894953566,0.179596,61126.0,61125.0,0.002818]
[1727894953790,0.173596,61126.0,61125.0,0.001818]
[1727894954004,0.173596,61126.0,61125.0,0.000818]
[1727894954005,0.163596,61126.0,61125.0,0.000818]
[1727894954221,0.170596,61126.0,61125.0,0.001818]
[1727894954879,0.163596,61126.0,61125.0,0.000818]
[1727894955094,0.163596,61126.0,61125.0,0.001818]
[1727894955095,0.165596,61126.0,61125.0,0.001818]
[1727894955303,0.165596,61126.0,61125.0,0.000818]
[1727894955507,0.163596,61126.0,61125.0,0.000818]
[1727894955726,0.164596,61126.0,61125.0,0.000818]
[1727894956609,0.19024357,61126.0,61125.0,0.000818]
[1727894957254,0.18924357,61126.0,61125.0,0.002818]
[1727894958356,0.19124357,61126.0,61125.0,0.002818]
[1727894958793,0.18924357,61126.0,61125.0,0.002818]
[1727894959000,0.19224357,61126.0,61125.0,0.000818]
[1727894959222,0.19324357,61126.0,61125.0,0.000818]
[1727894959642,0.19224357,61126.0,61125.0,0.000818]
[1727894959884,0.19224357,61126.0,61125.0,0.002818]
[1727894960316,0.18924357,61126.0,61125.0,0.002818]
[1727894961390,0.19224357,61126.0,61125.0,0.002818]
[1727894961814,0.18924357,61126.0,61125.0,0.002818]
[1727894962237,0.19124357,61126.0,61125.0,0.002818]
[1727894962484,0.19124357,61126.0,61125.0,0.000818]
[1727894962705,0.19324357,61126.0,61125.0,0.000818]
[1727894962928,0.48050103,61126.0,61125.0,0.000818]
[1727894963129,0.48050103,61126.0,61125.0,0.001818]
[1727894963550,0.48050103,61126.0,61125.0,0.000818]
[1727894963551,0.45285346,61126.0,61125.0,0.000818]
[1727894963769,0.45185346,61126.0,61125.0,0.000818]
[1727894964212,0.45285346,61126.0,61125.0,0.000818]
[1727894964640,0.45185346,61126.0,61125.0,0.000818]
[1727894964840,0.45385346,61126.0,61125.0,0.000818]
[1727894965056,0.003,61126.0,61125.0,0.000818]
[1727894965726,0.003,61126.0,61125.0,0.35060371]
[1727894966150,0.002,61126.0,61125.0,0.35060371]
[1727894966365,0.003,61126.0,61125.0,0.35060371]
[1727894966602,0.002,61126.0,61125.0,0.000818]
[1727894966819,0.165596,61126.0,61125.0,0.000818]
[1727894967032,0.164596,61126.0,61125.0,0.010818]
[1727894967264,0.166596,61126.0,61125.0,0.010818]
[1727894967739,0.16631578,61126.0,61125.0,0.010818]
[1727894967972,0.16431578,61126.0,61125.0,0.010818]
[1727894968182,0.16331578,61126.0,61125.0,0.002818]
[1727894968398,0.163593,61128.0,61125.0,0.002818]
[1727894968599,0.001,61126.0,61125.0,0.012818]
[1727894969012,0.001,61126.0,61125.0,0.180417]
[1727894969229,0.001,61126.0,61125.0,0.36660371]
[1727894969861,0.24451671,61135.0,61126.0,0.023]
[1727894970061,0.163583,61131.0,61129.0,0.023]
[1727894970270,0.43606906,61135.0,61125.0,0.007818]
[1727894970488,0.24451671,61134.0,61128.0,0.023]
[1727894970714,0.24451671,61134.0,61126.0,0.023]
[1727894970931,0.163589,61129.0,61126.0,0.023]
[1727894971375,0.19155235,61131.0,61125.0,0.007818]
[1727894971585,0.163596,61126.0,61125.0,0.007818]
[1727894972015,0.163589,61129.0,61125.0,0.000818]
[1727894972221,0.327178,61129.0,61125.0,0.000818]
[1727894972428,0.163596,61126.0,61125.0,0.000818]
[1727894972854,0.001,61126.0,61125.0,0.196417]
[1727894973049,0.02564308,61133.0,61127.0,0.023]
[1727894973050,0.327165,61132.0,61127.0,0.023]
[1727894973292,0.163588,61130.0,61127.0,0.023]
[1727894973499,0.02564308,61133.0,61127.0,0.023]
[1727894973709,0.327139,61136.0,61129.0,0.186588]
[1727894973926,0.163585,61131.0,61128.0,0.023]
[1727894974347,0.001636,61137.0,61129.0,0.023]
[1727894974544,0.24451671,61134.0,61131.0,0.163582]
[1727894974749,0.163575,61134.0,61132.0,0.023]
[1727894974996,0.163575,61134.0,61131.0,0.023]
[1727894975239,0.163577,61133.0,61131.0,0.023]
[1727894975679,0.327151,61134.0,61129.0,0.023]
[1727894975884,0.163578,61133.0,61129.0,0.186587]
[1727894976083,0.163578,61133.0,61132.0,0.028]
[1727894976284,0.163578,61133.0,61130.0,0.163585]
[1727894976285,0.163578,61133.0,61131.0,0.023]
[1727894976793,0.163578,61133.0,61132.0,0.026]
[1727894977008,0.18922049,61133.0,61132.0,0.026]
[1727894977221,0.18922049,61133.0,61125.0,0.000818]
[1727894977222,0.327182,61128.0,61125.0,0.000818]
[1727894977428,0.163596,61127.0,61125.0,0.000818]
[1727894977636,0.163592,61128.0,61125.0,0.000818]
[1727894977841,0.163596,61126.0,61125.0,0.023818]
[1727894978061,0.327168,61131.0,61125.0,0.023818]
[1727894978273,0.327181,61129.0,61125.0,0.023818]
[1727894978486,0.24451671,61130.0,61125.0,0.023818]
[1727894978690,0.163596,61126.0,61125.0,0.000818]
[1727894978905,0.490775,61128.0,61126.0,0.023]
[1727894979337,0.163596,61126.0,61125.0,0.000818]
[1727894979543,0.163596,61126.0,61125.0,0.027818]
[1727894979749,0.163596,61126.0,61125.0,0.000818]
[1727894979955,0.163596,61126.0,61125.0,0.005818]
[1727894980826,0.02564435,61146.0,61125.0,0.005818]
[1727894981050,0.163596,61126.0,61125.0,0.000818]
[1727894981294,0.327152,61134.0,61125.0,0.000818]
[1727894981517,0.19155235,61139.0,61125.0,0.000818]
[1727894981518,0.163588,61130.0,61126.0,0.186595]
[1727894981733,0.4716,61145.0,61128.0,0.023]
[1727894981734,0.19318835,61143.0,61128.0,0.023]
[1727894981941,0.24451671,61135.0,61130.0,0.023]
[1727894982144,0.24451671,61135.0,61133.0,0.023]
[1727894982347,0.40808871,61135.0,61133.0,0.023]
[1727894982557,0.163578,61133.0,61130.0,0.163585]
[1727894982765,0.163578,61133.0,61131.0,0.023]
[1727894983181,0.327151,61134.0,61130.0,0.023]
[1727894983383,0.327151,61134.0,61130.0,0.186585]
[1727894983384,0.163578,61133.0,61130.0,0.186585]
[1727894983828,0.163578,61133.0,61130.0,0.192585]
[1727894983829,0.164578,61133.0,61130.0,0.192585]
[1727894984262,0.163578,61133.0,61130.0,0.186585]
[1727894984694,0.163578,61133.0,61130.0,0.027]
[1727894985110,0.163578,61133.0,61130.0,0.033]
[1727894985614,0.328772,61137.0,61130.0,0.033]
[1727894985615,0.16357,61136.0,61133.0,0.163576]
[1727894985837,0.001636,61137.0,61135.0,0.023]
[1727894986076,0.001636,61137.0,61136.0,0.34975571]
[1727894986294,0.001636,61137.0,61136.0,0.44865571]
[1727894987761,0.002636,61137.0,61136.0,0.46265571]
[1727894987973,0.00235578,61137.0,61136.0,0.46265571]
[1727894988407,0.00235578,61137.0,61136.0,0.47665571]
[1727894988832,0.00235578,61137.0,61136.0,0.46265571]
[1727894989140,0.00235578,61137.0,61136.0,0.47665571]
[1727894989568,0.00135578,61137.0,61136.0,0.46265571]
[1727894989986,0.00135578,61137.0,61136.0,0.47665571]
[1727894996116,0.00135578,61137.0,61136.0,0.028]
[1727894996334,0.16492278,61137.0,61136.0,0.028]
[1727894996984,0.16492278,61137.0,61136.0,0.014]
[1727894997203,0.16592278,61137.0,61136.0,0.023]
[1727894997853,0.16592278,61137.0,61136.0,0.009]
[1727894998095,0.16592278,61137.0,61136.0,0.02]
[1727894998544,0.16592278,61137.0,61136.0,0.009]
[1727894998756,0.163582,61132.0,61130.0,0.000818]
[1727894998985,0.327145,61135.0,61130.0,0.000818]
[1727894998986,0.163583,61131.0,61130.0,0.000818]
[1727894999424,0.163581,61132.0,61130.0,0.000818]
[1727894999641,0.163583,61131.0,61130.0,0.000818]
[1727895000536,0.00135578,61137.0,61135.0,0.16357]
[1727895000751,0.16492378,61137.0,61133.0,0.163575]
[1727895001000,0.16492378,61137.0,61134.0,0.023]
[1727895001443,0.16492378,61137.0,61136.0,0.186569]
[1727895001444,0.00135578,61137.0,61136.0,0.186569]
[1727895001696,0.00135578,61137.0,61131.0,0.163582]
[1727895001697,0.163575,61134.0,61131.0,0.163582]
[1727895001928,0.163575,61134.0,61131.0,0.023]
[1727895002165,0.163575,61134.0,61130.0,0.171403]
[1727895002166,0.163575,61134.0,61133.0,0.003]
[1727895002376,0.163583,61131.0,61130.0,0.000818]
[1727895002816,0.164583,61131.0,61130.0,0.007818]